bitfinex/quotes_ETHUSD_20241216
["timestamp","ask_amount","ask_price","bid_price","bid_amount"]
[1734339841023,0.7822,3948.9,3947.7,2.11106999]
[1734339841212,0.7822,3948.9,3947.7,5.35585866]
[1734339841419,0.7822,3948.9,3947.7,0.58268866]
[1734339841719,0.7822,3948.9,3947.9,1.77305]
[1734339841871,0.7822,3948.9,3947.7,0.33789999]
[1734339842080,0.7822,3948.9,3947.3,1.77335]
[1734339842081,2.5325,3948.7,3947.3,1.77335]
[1734339842342,0.7822,3948.9,3947.2,0.12581903]
[1734339842541,3.31456,3948.9,3947.4,1.77331]
[1734339842823,0.331456,3948.8,3947.2,0.46371902]
[1734339843029,3.31456,3948.9,3947.5,1.77323]
[1734339843030,0.7822,3948.9,3947.5,1.77323]
[1734339843529,0.7822,3948.9,3947.6,3.0]
[1734339843676,0.7822,3948.9,3947.4,0.67471672]
[1734339843877,0.7822,3948.9,3947.8,1.77313]
[1734339844635,0.7822,3948.9,3948.0,1.77302]
[1734339844842,0.7822,3948.9,3948.1,0.24730626]
[1734339845330,0.814,3949.2,3948.4,1.77282]
[1734339845510,0.814,3949.2,3948.2,0.33789999]
[1734339846028,0.814,3949.2,3948.1,2.02028626]
[1734339846029,0.814,3949.2,3948.1,0.24730626]
[1734339846881,0.814,3949.2,3948.4,1.77285]
[1734339847316,0.814,3949.2,3948.6,1.77273]
[1734339847521,0.814,3949.2,3948.7,0.02532137]
[1734339847699,0.813,3950.1,3948.6,1.77273]
[1734339848046,0.813,3950.1,3948.5,0.02532117]
[1734339848381,0.813,3950.1,3948.4,0.33789999]
[1734339848382,2.53173,3949.9,3948.6,1.77277]
[1734339848547,2.53173,3949.9,3948.7,0.211067]
[1734339848749,0.813,3950.1,3948.7,0.211067]
[1734339848944,3.34458,3950.1,3948.7,1.77272]
[1734339849155,2.53165,3950.0,3948.7,1.77272]
[1734339850178,0.813,3950.1,3948.9,1.77261]
[1734339850916,0.813,3950.1,3948.7,0.33789999]
[1734339850917,2.53167,3950.0,3948.8,1.77268]
[1734339851111,2.53167,3950.0,3948.9,0.211058]
[1734339851665,0.813,3950.1,3948.9,0.211058]
[1734339851865,0.813,3950.1,3949.0,1.77259]
[1734339852107,0.813,3950.1,3948.9,0.211058]
[1734339852108,0.813,3950.1,3949.1,0.02531881]
[1734339852224,0.813,3950.1,3949.1,0.3632188]
[1734339852422,0.813,3950.1,3949.2,1.77251]
[1734339852662,0.813,3950.1,3949.3,0.54472267]
[1734339852835,0.813,3950.1,3949.4,1.77241]
[1734339853316,0.813,3950.1,3949.3,0.54472267]
[1734339853512,0.813,3950.1,3949.3,5.31715267]
[1734339853751,0.813,3950.1,3949.3,0.54472267]
[1734339853965,0.813,3950.1,3949.0,1.77259]
[1734339854127,0.813,3950.1,3948.6,0.33789999]
[1734339854334,0.813,3950.1,3949.1,1.77255]
[1734339854551,0.813,3950.1,3949.2,1.7725]
[1734339854748,0.813,3950.1,3948.7,2.10951673]
[1734339854749,0.813,3950.1,3949.3,1.77244]
[1734339854949,0.813,3950.1,3949.3,1.949684]
[1734339857280,0.813,3950.1,3949.3,0.177244]
[1734339857428,0.813,3950.1,3949.1,1.77255]
[1734339857977,0.813,3950.1,3948.7,0.33681673]
[1734339858142,0.813,3950.1,3949.1,1.77252]
[1734339858769,0.813,3950.1,3949.2,1.7725]
[1734339858970,0.813,3950.1,3949.3,0.17725]
[1734339859729,0.813,3950.1,3949.0,1.77259]
[1734339859930,5.53118,3950.8,3948.8,0.33789999]
[1734339859931,2.53174,3949.9,3948.8,0.33789999]
[1734339860137,2.53143,3950.4,3948.7,0.33681673]
[1734339860138,0.7691,3949.7,3948.7,0.33681673]
[1734339860356,0.7691,3949.7,3948.7,2.10952673]
[1734339860641,0.7691,3949.7,3948.8,0.21095267]
[1734339861168,0.7691,3949.7,3948.7,2.10952673]
[1734339861545,0.7691,3949.7,3948.8,0.33789999]
[1734339861745,0.7691,3949.7,3949.0,1.77255]
[1734339861965,0.7691,3949.7,3949.0,2.10936673]
[1734339863854,0.7691,3949.7,3949.0,0.33681673]
[1734339864057,0.7691,3949.7,3949.1,1.77253]
[1734339865576,0.7691,3949.7,3949.1,0.24472467]
[1734339865771,1.58317883,3950.7,3949.1,0.24472467]
[1734339865772,0.8256,3950.6,3949.4,1.77238]
[1734339866650,0.8256,3950.6,3949.5,1.77236]
[1734339867191,0.8256,3950.6,3949.3,1.77246]
[1734339867382,0.8193,3950.4,3949.4,1.77241]
[1734339868548,0.8193,3950.4,3949.5,1.77235]
[1734339869582,0.8193,3950.4,3949.2,0.67471672]
[1734339869748,0.7786,3950.2,3949.2,0.33789999]
[1734339869949,0.7786,3949.8,3948.7,1.77273]
[1734339870547,0.7786,3949.8,3948.8,1.77267]
[1734339872101,0.7786,3949.8,3948.9,1.77262]
[1734339872762,0.7786,3949.8,3948.9,1.77264]
[1734339873196,0.87269118,3949.7,3948.9,1.77264]
[1734339873405,1.83396456,3949.8,3948.9,1.77264]
[1734339873596,0.87272982,3949.7,3948.9,1.77264]
[1734339873763,0.87272982,3949.7,3948.7,0.35589999]
[1734339873764,0.78,3949.6,3948.7,0.35589999]
[1734339873966,0.78,3949.4,3948.7,0.35589999]
[1734339874217,0.78,3949.4,3948.3,1.77291]
[1734339874362,0.87279994,3949.3,3948.3,4.77291]
[1734339874699,0.87279994,3949.3,3948.4,4.77286]
[1734339874886,0.7635,3949.2,3948.4,1.77286]
[1734339876297,0.7635,3949.2,3948.3,5.35219833]
[1734339876465,0.7635,3949.2,3948.3,5.70809832]
[1734339879512,0.87295075,3949.1,3948.3,0.35589999]
[1734339879837,0.7738,3949.1,3948.3,0.35589999]
[1734339882655,0.7738,3949.1,3948.3,0.71804061]
[1734339882949,0.7738,3949.1,3948.6,1.77277]
[1734339883114,0.7738,3949.1,3948.6,2.12866999]
[1734339883443,0.7738,3949.1,3948.7,0.60244866]
[1734339883650,0.7738,3949.1,3948.7,3.60244866]
[1734339883851,0.7738,3949.1,3948.7,0.60244866]
[1734339884015,0.7738,3949.1,3948.7,0.35589999]
[1734339884350,0.7738,3949.1,3948.4,0.33681673]
[1734339884568,0.7738,3949.1,3948.4,2.10967673]
[1734339884789,0.7738,3949.1,3948.4,2.46557672]
[1734339885048,0.7738,3949.1,3948.4,0.69271672]
[1734339885223,0.95671646,3949.1,3948.4,0.69271672]
[1734339885423,2.71516646,3949.1,3948.0,1.77303]
[1734339885628,0.7779,3948.9,3947.9,0.35589999]
[1734339885824,0.7779,3948.7,3947.9,0.35589999]
[1734339886067,0.7779,3948.7,3947.8,0.26394385]
[1734339886068,0.7779,3948.6,3947.8,0.26394385]
[1734339886238,0.7779,3948.4,3947.8,0.26394385]
[1734339887846,0.7779,3948.4,3947.8,2.03707385]
[1734339888052,0.7779,3948.4,3947.8,2.39297384]
[1734339889754,0.7779,3948.4,3947.9,1.77308]
[1734339889962,0.7779,3948.4,3947.8,0.61984384]
[1734339891330,0.7696,3948.4,3947.8,0.61984384]
[1734339891536,1.64277289,3948.3,3947.8,0.26394385]
[1734339891774,0.7696,3948.1,3947.8,0.26394385]
[1734339894829,2.53291,3948.1,3947.8,0.26394385]
[1734339895036,0.8107,3947.9,3946.9,0.35589999]
[1734339895438,0.8107,3947.9,3947.2,0.26341526]
[1734339896070,0.7818,3947.7,3947.2,0.26341526]
[1734339896240,1.58317883,3948.3,3946.9,0.69271672]
[1734339896241,0.7818,3947.5,3946.9,0.69271672]
[1734339898366,0.7769,3947.4,3946.9,0.69271672]
[1734339898561,2.53332,3947.4,3946.9,0.35589999]
[1734339898880,0.7769,3947.3,3946.9,0.35589999]
[1734339901047,0.7769,3947.3,3946.2,1.77382]
[1734339901048,0.7937,3947.1,3945.4,0.39530663]
[1734339901251,0.7937,3947.1,3945.0,0.23732682]
[1734339901252,0.7937,3946.6,3945.1,1.519]
[1734339901447,0.7937,3946.5,3945.4,1.77418]
[1734339901694,0.7937,3946.5,3945.5,1.77416]
[1734339901865,0.7937,3946.5,3945.1,1.519]
[1734339902073,0.7937,3946.3,3945.1,1.519]
[1734339902413,2.53428,3945.9,3945.0,0.23732682]
[1734339902558,0.7937,3945.1,3945.0,0.23732682]
[1734339903886,0.7937,3945.1,3944.1,1.77478]
[1734339904488,0.7937,3945.1,3943.8,0.0253508]
[1734339904694,0.7937,3945.1,3943.9,0.51562308]
[1734339905056,0.7937,3945.1,3943.9,3.51562308]
[1734339905308,0.7937,3945.1,3944.1,1.77479]
[1734339905810,0.7937,3945.1,3944.3,1.7747]
[1734339906472,0.7937,3945.1,3944.6,1.77455]
[1734339906784,0.8038,3946.3,3945.1,1.77434]
[1734339906981,0.8038,3946.3,3944.6,3.20250743]
[1734339906982,0.8038,3946.3,3945.3,2.15650445]
[1734339907156,0.8038,3946.3,3945.7,1.77407]
[1734339907356,0.8038,3946.3,3945.8,1.77401]
[1734339907565,0.8038,3946.3,3945.9,1.77398]
[1734339907774,0.8038,3946.3,3945.8,3.0]
[1734339907976,0.8038,3946.3,3945.9,1.77399]
[1734339908182,0.8038,3946.3,3945.7,2.15650445]
[1734339908353,0.8038,3946.3,3945.8,3.0]
[1734339908567,0.7963,3947.3,3946.3,1.7738]
[1734339908918,0.7963,3947.3,3945.8,3.0]
[1734339908919,0.7963,3947.3,3946.4,1.77376]
[1734339909395,0.7963,3947.3,3946.1,0.02533784]
[1734339909565,0.7963,3947.3,3946.5,1.77372]
[1734339909757,0.7963,3947.3,3946.3,1.7738]
[1734339909959,0.7963,3947.3,3946.0,0.3559]
[1734339910178,0.7963,3947.3,3946.1,3.0]
[1734339910407,0.7963,3947.3,3946.5,1.77369]
[1734339910915,0.7963,3947.3,3946.6,2.18184097]
[1734339911211,0.50035076,3948.3,3947.3,1.77333]
[1734339911212,0.7598,3948.3,3947.3,1.77333]
[1734339911971,0.7598,3948.3,3947.3,1.77334]
[1734339912701,1.089034,3948.3,3947.4,1.7733]
[1734339912903,0.7598,3948.3,3947.4,1.7733]
[1734339913056,0.7598,3948.3,3947.5,1.77323]
[1734339913258,0.7598,3948.3,3947.4,1.77331]
[1734339913603,0.7598,3948.3,3947.5,1.77325]
[1734339913916,0.7598,3948.3,3947.8,1.77313]
[1734339914079,3.0,3949.4,3947.9,2.18183292]
[1734339914080,0.7678,3949.4,3947.9,2.18183292]
[1734339914429,0.7678,3949.4,3948.0,3.0]
[1734339914562,0.7678,3949.4,3948.4,1.77285]
[1734339914767,0.7678,3949.4,3948.6,1.77277]
[1734339915021,0.7678,3949.4,3947.9,2.15650445]
[1734339915199,0.7678,3949.4,3948.0,3.55124045]
[1734339915401,0.7678,3949.4,3948.4,2.15650445]
[1734339915783,0.7678,3949.4,3948.7,1.77272]
[1734339917113,0.7678,3949.4,3948.3,3.0]
[1734339917332,0.7678,3949.4,3948.4,1.77284]
[1734339917618,0.7678,3949.4,3948.5,1.77282]
[1734339918079,0.7678,3949.4,3948.2,2.65711155]
[1734339918080,0.7678,3949.4,3948.2,1.77292]
[1734339918263,0.7678,3949.4,3948.3,0.23241605]
[1734339918668,0.7678,3949.4,3948.1,1.773]
[1734339918870,0.7678,3949.4,3948.0,0.55124045]
[1734339919292,3.0,3950.3,3947.3,1.77334]
[1734339919293,2.53232,3949.0,3947.3,2.12924]
[1734339919490,2.53232,3949.0,3947.7,1.77316]
[1734339919705,0.8143,3949.2,3947.8,1.77312]
[1734339920283,0.8143,3949.2,3947.4,2.68243882]
[1734339920482,0.8143,3949.2,3948.2,1.77295]
[1734339920678,0.8143,3949.2,3947.4,2.65711155]
[1734339920679,0.8143,3949.2,3947.5,3.0]
[1734339921021,0.8143,3949.2,3947.6,0.60130116]
[1734339921198,0.8143,3949.2,3948.0,1.77302]
[1734339921896,0.8143,3949.2,3947.8,1.77313]
[1734339922099,2.53191,3949.6,3947.6,0.60130116]
[1734339922100,0.8,3948.8,3947.6,0.60130116]
[1734339922446,0.8,3948.8,3947.8,1.77313]
[1734339922586,0.8,3948.8,3947.6,1.77322]
[1734339922790,0.8,3948.8,3947.8,1.77312]
[1734339923204,0.8,3948.8,3947.5,3.02532693]
[1734339923386,0.8,3948.8,3948.2,1.77293]
[1734339923700,1.05536456,3949.9,3948.2,1.77293]
[1734339923701,0.7723,3949.3,3948.6,1.77276]
[1734339925338,0.7723,3949.3,3948.8,1.77268]
[1734339925539,1.05536456,3950.4,3949.2,1.77248]
[1734339925540,0.7723,3949.7,3949.2,1.77248]
[1734339926338,0.7723,3949.7,3948.7,4.77271]
[1734339926642,0.7723,3949.7,3948.7,1.77271]
[1734339926785,0.330403,3949.6,3948.7,1.77271]
[1734339927407,0.330403,3949.6,3948.3,3.0]
[1734339927746,0.7723,3949.7,3948.8,1.77268]
[1734339927959,0.7723,3949.7,3948.4,1.77287]
[1734339928244,0.7723,3949.7,3948.7,3.0]
[1734339928443,0.7723,3949.7,3948.9,3.0]
[1734339928633,0.7723,3949.7,3948.9,1.77262]
[1734339929185,0.7723,3949.7,3948.7,3.0]
[1734339929406,1.05536456,3950.7,3948.7,3.0]
[1734339929407,0.7574,3950.6,3949.2,1.77248]
[1734339929645,0.7574,3950.6,3949.5,1.77235]
[1734339929941,0.7574,3950.6,3948.7,3.56571116]
[1734339929942,0.7574,3950.7,3948.9,1.77261]
[1734339930240,0.7574,3950.1,3948.9,1.77261]
[1734339930389,0.7574,3950.1,3948.7,3.92161116]
[1734339930390,0.7574,3950.1,3949.0,1.77259]
[1734339931518,0.7574,3950.1,3948.7,3.92161116]
[1734339931724,0.7574,3950.1,3949.1,1.77255]
[1734339932028,2.53173,3949.9,3948.7,3.0]
[1734339932195,0.7699,3949.8,3948.7,4.77269]
[1734339932393,0.7699,3949.8,3948.8,1.77268]
[1734339932700,0.7699,3949.8,3948.7,3.0]
[1734339932701,1.1329516,3949.8,3948.7,3.0]
[1734339932894,1.1329516,3949.8,3948.9,1.77263]
[1734339933089,1.1329516,3949.8,3948.7,3.0]
[1734339933309,0.7699,3949.8,3948.3,0.3559]
[1734339933544,0.7699,3949.8,3948.3,5.12877]
[1734339933725,0.7699,3949.5,3948.3,3.3559]
[1734339934044,0.7699,3949.5,3948.6,1.77277]
[1734339934242,0.7699,3949.5,3948.8,1.77268]
[1734339934449,0.7699,3949.5,3948.6,2.65711155]
[1734339934593,0.7699,3949.5,3948.7,3.26571116]
[1734339934788,0.7699,3949.5,3948.9,1.7726]
[1734339935012,0.7699,3949.5,3948.7,3.26571116]
[1734339935013,0.7699,3949.5,3948.7,5.03844116]
[1734339935564,0.7699,3949.5,3948.8,1.77268]
[1734339935773,0.7699,3949.5,3948.6,1.77276]
[1734339936083,0.7699,3949.5,3948.3,1.519]
[1734339936564,0.7699,3949.5,3948.5,1.77281]
[1734339937819,0.7699,3949.5,3948.6,1.77276]
[1734339938884,0.7607511,3949.5,3948.6,1.77276]
[1734339939032,0.7607511,3949.5,3948.4,3.0]
[1734339939229,0.51739449,3950.6,3948.1,1.77299]
[1734339939469,2.53216,3949.2,3947.9,1.77309]
[1734339939796,2.53216,3949.2,3948.0,3.0]
[1734339939948,2.53216,3949.2,3948.0,1.77302]
[1734339940146,2.53216,3949.2,3948.1,0.629202]
[1734339940400,2.53238,3948.9,3948.0,3.0]
[1734339940535,2.53238,3948.9,3947.5,1.77323]
[1734339940536,0.25,3950.1,3947.3,1.519]
[1734339940887,0.25,3950.1,3946.8,1.77358]
[1734339940888,2.53284,3948.2,3946.8,1.77358]
[1734339941094,2.53295,3948.0,3946.7,0.3651]
[1734339941255,2.53295,3948.0,3946.8,0.42977179]
[1734339941459,2.53286,3948.2,3946.8,0.42977179]
[1734339941659,2.53231,3949.0,3946.9,1.77353]
[1734339941856,0.7687,3948.0,3946.9,1.77353]
[1734339942288,0.7687,3948.0,3946.8,0.42977179]
[1734339942289,2.533,3947.9,3946.8,0.42977179]
[1734339942522,2.533,3947.9,3946.9,0.55684918]
[1734339942813,2.533,3947.9,3946.5,3.6779779]
[1734339942814,0.77,3947.8,3946.2,1.77382]
[1734339942993,2.53303,3947.9,3946.2,1.77382]
[1734339942994,0.77,3947.3,3946.2,1.77382]
[1734339944855,0.77,3947.3,3946.0,0.3651]
[1734339945218,3.28879,3947.0,3946.1,0.22649354]
[1734339945359,3.28879,3947.0,3945.7,1.77405]
[1734339946253,0.7552,3947.0,3945.6,0.62808516]
[1734339946413,0.786,3946.5,3945.6,0.45612231]
[1734339946710,0.786,3946.5,3945.4,1.7742]
[1734339947061,3.31991,3946.5,3945.2,0.49312896]
[1734339947262,3.31991,3946.5,3945.3,1.77425]
[1734339948095,0.786,3946.4,3945.3,1.77425]
[1734339948296,0.786,3946.4,3945.4,0.177425]
[1734339949277,0.786,3946.2,3944.9,2.13952]
[1734339949629,3.32009,3946.2,3944.9,2.13952]
[1734339949828,2.53414,3946.1,3944.9,1.77442]
[1734339950176,0.786,3946.2,3945.0,1.77437]
[1734339950527,0.786,3946.2,3945.0,1.951807]
[1734339951033,0.7965,3946.1,3944.7,1.77451]
[1734339951175,0.7965,3945.8,3944.3,0.3651]
[1734339951373,2.5338,3946.7,3943.9,1.77489]
[1734339951374,0.7928,3945.3,3943.9,1.77489]
[1734339951615,0.332745,3945.2,3944.1,1.77479]
[1734339951793,0.7928,3945.3,3944.1,1.77479]
[1734339952136,0.7928,3945.3,3943.9,0.63368766]
[1734339952340,0.7928,3945.3,3944.3,1.7747]
[1734339952625,0.7928,3945.3,3943.8,2.13999]
[1734339952626,0.7928,3945.3,3944.5,2.1589779]
[1734339952846,1.58317883,3946.8,3944.9,1.77442]
[1734339952847,2.16288241,3946.8,3944.9,1.77442]
[1734339953023,0.7883,3946.7,3944.7,1.77452]
[1734339953330,0.7883,3945.8,3944.5,1.77458]
[1734339953469,0.7883,3945.8,3944.6,0.513968]
[1734339953675,0.7883,3945.8,3944.6,2.288518]
[1734339954121,0.7883,3945.8,3944.7,1.77451]
[1734339954421,0.7883,3945.8,3944.6,0.513968]
[1734339955677,0.7883,3945.8,3944.8,1.77445]
[1734339955885,2.53416,3946.1,3944.5,3.0]
[1734339955886,2.53441,3945.7,3944.5,1.77461]
[1734339956027,0.756,3945.6,3944.5,1.77461]
[1734339957179,0.7732,3945.5,3943.9,3.0]
[1734339957341,2.53454,3945.5,3944.3,1.77468]
[1734339957547,0.8278,3945.3,3944.3,1.77468]
[1734339958295,0.8278,3945.3,3943.8,5.28845081]
[1734339958441,0.8278,3945.3,3943.9,4.519]
[1734339958637,0.8278,3945.3,3944.3,3.0]
[1734339958944,0.8278,3945.3,3944.7,1.77453]
[1734339959475,0.8278,3945.3,3944.3,3.0]
[1734339959694,0.8278,3945.3,3944.8,1.77447]
[1734339960032,0.8278,3945.3,3944.5,1.7746]
[1734339960233,0.8278,3945.3,3944.1,1.519]
[1734339960234,0.8278,3945.3,3944.2,1.77472]
[1734339960480,0.8278,3945.3,3944.0,3.0]
[1734339960481,0.8278,3945.3,3944.5,1.77462]
[1734339961038,0.8278,3945.3,3944.0,1.519]
[1734339961232,0.8278,3945.3,3944.6,1.77455]
[1734339962192,0.8278,3945.3,3944.5,0.3651]
[1734339962406,0.8278,3945.3,3945.2,1.7743]
[1734339962687,0.7584,3945.7,3944.7,1.77452]
[1734339962836,2.53431,3945.9,3944.7,1.77452]
[1734339962837,0.7584,3945.5,3944.7,1.77452]
[1734339963192,0.7584,3945.5,3944.1,0.94714508]
[1734339963354,0.8066,3945.4,3944.3,1.77469]
[1734339963559,0.8066,3945.4,3944.2,4.77475]
[1734339963738,0.8066,3945.4,3944.4,1.77466]
[1734339963938,0.8066,3945.4,3944.6,1.77455]
[1734339964134,0.8066,3945.4,3944.7,1.77451]
[1734339965071,0.8066,3945.4,3944.8,1.77447]
[1734339965276,0.8066,3945.4,3944.3,5.64685951]
[1734339965277,0.8066,3945.4,3944.3,0.87218951]
[1734339965457,0.8066,3945.4,3944.5,1.77457]
[1734339965655,0.8066,3945.4,3944.4,0.81130946]
[1734339965854,0.8066,3945.4,3944.7,1.7745]
[1734339966365,0.8066,3945.4,3944.4,0.81130946]
[1734339966709,0.8066,3945.4,3944.6,1.77456]
[1734339966838,2.53467,3945.3,3944.1,1.77479]
[1734339967038,0.7765,3945.8,3943.6,0.26709126]
[1734339967239,0.7765,3945.8,3942.9,0.23117167]
[1734339967240,0.7765,3944.9,3943.8,1.77493]
[1734339967511,0.7765,3944.7,3943.8,2.03792375]
[1734339968902,0.7765,3944.7,3943.9,1.77486]
[1734339969645,0.7765,3944.7,3943.8,0.26299375]
[1734339969894,0.7765,3944.7,3943.9,1.77489]
[1734339970100,0.7765,3944.7,3944.0,1.77483]
[1734339971124,0.7765,3944.7,3943.8,0.26299375]
[1734339971248,0.7644,3944.6,3943.8,0.26299375]
[1734339971646,2.53517,3944.6,3943.8,0.26299375]
[1734339971884,0.7644,3944.5,3943.8,0.26299375]
[1734339972783,0.7748,3944.6,3943.8,0.26299375]
[1734339972961,0.7748,3943.4,3941.0,0.39815272]
[1734339973316,0.7748,3943.4,3941.5,0.5359]
[1734339973462,0.7748,3943.4,3942.0,1.77572]
[1734339973660,2.16288241,3943.5,3941.4,0.04639395]
[1734339973999,0.7748,3943.4,3941.6,1.77589]
[1734339974328,0.7748,3943.0,3941.6,1.77592]
[1734339974595,0.7748,3943.0,3941.7,1.77587]
[1734339974769,0.7748,3942.8,3941.2,5.16288241]
[1734339975268,0.7748,3942.8,3941.5,4.77594]
[1734339975477,0.7748,3942.8,3941.6,0.48013084]
[1734339975697,0.7748,3942.8,3941.5,1.77594]
[1734339975994,0.7748,3942.8,3941.3,3.0]
[1734339976337,0.7748,3942.8,3941.4,1.77601]
[1734339976500,0.7748,3942.8,3941.9,1.77578]
[1734339976864,0.7748,3942.8,3942.1,1.7757]
[1734339977197,0.7748,3942.8,3942.6,1.77545]
[1734339977633,2.82895824,3944.5,3942.7,1.7754]
[1734339977634,0.7589,3944.2,3942.7,1.7754]
[1734339977766,0.7589,3944.2,3943.4,1.7751]
[1734339977964,0.7589,3944.2,3942.8,1.77538]
[1734339978184,0.7589,3944.2,3943.1,1.77523]
[1734339978185,0.8008,3944.1,3943.1,1.77523]
[1734339978509,0.8008,3944.1,3943.6,1.77502]
[1734339979066,0.8008,3944.1,3943.7,1.77498]
[1734339979501,0.8008,3944.1,3943.1,3.0]
[1734339979663,0.8008,3944.1,3944.0,1.77484]
[1734339979862,0.8008,3944.1,3943.3,1.77512]
[1734339979863,0.8008,3944.1,3943.7,1.77495]
[1734339980068,0.8008,3944.1,3943.5,1.77502]
[1734339980274,0.8008,3944.1,3943.7,1.77497]
[1734339980475,0.8008,3944.1,3943.4,1.77511]
[1734339980683,0.8008,3944.1,3943.7,1.77497]
[1734339980899,0.8008,3944.1,3943.3,0.33355084]
[1734339981097,0.8008,3944.1,3943.6,1.77502]
[1734339981821,0.8008,3944.1,3943.7,1.77497]
[1734339982311,0.8008,3944.1,3943.5,1.77506]
[1734339982729,0.8008,3944.1,3942.7,3.0]
[1734339982881,0.7869,3943.9,3942.7,1.77542]
[1734339983075,0.7869,3943.7,3942.7,1.77542]
[1734339983282,0.33224,3943.8,3942.0,4.95208528]
[1734339983283,0.7869,3943.6,3942.0,4.95208528]
[1734339983592,0.7869,3943.6,3942.6,1.77546]
[1734339985028,0.7869,3943.6,3942.0,2.66463945]
[1734339985242,0.7869,3943.6,3942.4,1.77553]
[1734339985403,0.332253,3943.5,3942.4,1.77553]
[1734339985580,0.7761,3943.4,3941.8,2.28112951]
[1734339985890,0.7761,3943.3,3942.1,1.77567]
[1734339986374,0.7761,3943.2,3941.5,1.77594]
[1734339986579,0.7761,3942.9,3941.2,2.66463945]
[1734339986781,3.31231,3942.9,3941.5,1.77593]
[1734339987013,3.31231,3942.9,3941.2,2.27243349]
[1734339987014,0.7761,3942.8,3941.2,1.7761]
[1734339987181,0.7761,3942.8,3941.6,1.77592]
[1734339987182,0.7761,3942.7,3941.6,1.77592]
[1734339987589,2.867501,3942.8,3941.0,0.00254]
[1734339987590,0.8249,3942.6,3941.0,0.00254]
[1734339987792,0.8249,3942.6,3941.4,1.77601]
[1734339988011,0.8284,3942.5,3941.4,1.77601]
[1734339988192,0.8284,3942.3,3941.4,1.77601]
[1734339988708,0.8284,3942.3,3941.5,1.77596]
[1734339989320,0.8284,3942.3,3941.3,1.77603]
[1734339989488,0.8284,3942.3,3941.0,0.00254]
[1734339989703,2.53653,3942.4,3941.1,1.77615]
[1734339989704,0.8284,3942.1,3941.1,1.77615]
[1734339990094,0.8284,3942.1,3941.0,0.00254]
[1734339990522,0.8284,3941.6,3941.0,0.00254]
[1734339990719,0.8284,3941.5,3941.0,0.00254]
[1734339990922,0.8284,3941.2,3941.0,0.00254]
[1734339992922,2.53736,3941.1,3941.0,0.00254]
[1734339993080,2.53736,3941.1,3939.7,4.77677]
[1734339993286,0.336576,3941.0,3939.7,3.0]
[1734339993487,0.8284,3941.2,3939.5,1.03444963]
[1734339993724,0.7553,3940.5,3939.2,4.60467185]
[1734339993923,3.29307,3940.5,3939.2,0.1630624]
[1734339994140,3.29306,3940.5,3939.2,0.1630624]
[1734339994441,2.53748,3941.0,3939.2,0.1630624]
[1734339994442,0.7553,3940.3,3939.2,0.1630624]
[1734339994929,2.53723,3941.3,3939.6,1.7768]
[1734339994930,0.8206,3939.9,3939.6,1.7768]
[1734339995131,0.8206,3939.9,3939.3,1.77692]
[1734339995829,0.8206,3939.9,3939.4,1.77689]
[1734339996032,0.8206,3940.3,3939.2,0.18844643]
[1734339996330,0.8206,3939.6,3939.2,0.1630624]
[1734339996493,2.53797,3940.2,3939.2,0.1630624]
[1734339996494,0.8206,3939.3,3939.2,0.1630624]
[1734339996936,0.8206,3938.8,3937.3,0.25]
[1734339997101,5.20312945,3939.4,3937.3,0.25]
[1734339997102,2.53906,3938.5,3937.3,0.25]
[1734339997286,3.30649,3938.3,3937.5,0.26274815]
[1734339997493,3.30649,3938.3,3937.3,0.25]
[1734339997494,0.7673,3938.3,3937.3,0.25]
[1734339997697,2.5393,3938.1,3937.3,0.25]
[1734339997897,0.7673,3937.8,3937.3,0.25]
[1734339998203,2.53966,3937.6,3937.3,0.25]
[1734339998397,0.7673,3937.9,3937.3,0.25]
[1734339999235,2.53969,3937.5,3937.3,0.25]
[1734339999432,0.7673,3937.9,3937.3,0.25]
[1734340001101,0.33066,3937.8,3937.3,0.25]
[1734340001502,0.7673,3937.9,3937.3,0.25]
[1734340003701,0.7673,3937.9,3937.3,2.02785]
[1734340003906,0.7673,3937.9,3937.3,0.25]
[1734340005210,0.7673,3937.9,3937.3,2.02785]
[1734340006210,0.7673,3937.9,3937.4,1.77781]
[1734340006647,0.8272,3938.4,3938.0,1.77753]
[1734340006958,0.8272,3938.4,3938.1,1.77747]
[1734340007307,0.8272,3938.4,3937.4,3.202781]
[1734340007508,0.8272,3938.4,3937.5,1.77776]
[1734340007731,0.8272,3938.4,3937.3,0.25]
[1734340008908,5.66463945,3938.8,3937.3,0.25]
[1734340009113,2.53939,3938.0,3937.3,0.25]
[1734340009369,0.802,3937.8,3937.3,0.25]
[1734340009661,2.53962,3937.6,3937.3,0.25]
[1734340010010,0.802,3937.8,3937.3,0.25]
[1734340010832,3.36144,3937.4,3937.3,0.25]
[1734340011759,3.36144,3937.4,3936.0,0.72088]
[1734340011760,0.336144,3937.3,3936.0,0.02198]
[1734340011959,0.8217,3936.2,3936.0,0.02198]
[1734340012296,2.54058,3936.1,3936.0,0.02198]
[1734340012570,2.66463945,3936.3,3935.3,0.1630624]
[1734340012571,2.54081,3935.8,3935.3,0.1630624]
[1734340012876,0.7919,3935.4,3934.2,0.26287051]
[1734340013472,0.7919,3935.4,3934.2,1.77926]
[1734340013780,2.54111,3935.3,3933.6,1.77952]
[1734340014060,0.7919,3935.4,3934.1,1.77931]
[1734340014217,0.7919,3935.4,3933.6,1.77952]
[1734340014218,0.7919,3935.4,3934.2,0.177931]
[1734340014435,0.25,3936.6,3933.5,0.7969]
[1734340014436,2.66463945,3936.7,3934.3,0.02541851]